{"text_format":"1","workbook":"xlsx","n_sheets":3,"sheets":["入力フォーム","入力フォームあり","入力フォームなし"],"not_rendered":{"charts":0,"images":0,"macros":1,"external_links":1,"defined_names":17,"comments":0,"pivot_tables":0},"unopened":[],"bounds":{"document_bytes":16777216,"sheet_cells":100000,"rows_first":2000,"rows_last":500,"rows_between":2000,"halvings":0,"cell_chars":16384,"cell_head_chars":4096},"cells_cut":0,"cells_raw":0,"read":"whole","date_system":"1900"}

{"sheet":"入力フォーム","index":0,"n_rows":48,"n_cols":13,"rows_kept":48,"cut":false,"hidden":false,"merged":[[44,1,44,7],[32,1,32,3],[32,5,32,7],[29,1,29,7],[19,1,19,7],[20,1,20,6],[24,1,24,3],[24,5,24,7],[25,1,25,3],[22,1,22,2],[30,0,31,0],[38,1,38,7],[41,1,41,2],[41,5,41,6],[27,0,27,1],[30,2,30,7],[34,0,35,0],[34,2,34,3],[34,5,34,7],[35,2,35,3],[35,5,35,7],[31,2,31,7],[33,1,33,2],[28,6,28,7],[28,1,28,2],[4,1,4,3],[0,0,0,7],[3,0,3,1],[5,1,5,3],[4,5,4,7],[18,1,18,7],[9,0,10,0],[9,2,9,3],[9,5,9,7],[12,0,12,1],[10,2,10,7],[13,1,13,7],[14,1,14,7],[15,1,15,3],[15,5,15,7],[16,1,16,7],[7,0,8,0],[7,2,7,7],[8,2,8,7],[5,5,5,7],[6,1,6,7]]}
["入力フォーム（黄色の部分に入力してください）"]
["提出日","令和",null,"年",null,"月",null,"日"]
[]
["給与支払者（特別徴収義務者）"]
["年度",null,null,null,"指定番号"]
["特別徴収義務者名",null,null,null,"フリガナ"]
["法人番号\n（新規事業所の場合）"]
["住所又は\n所在地","郵便番号"]
[null,"住所"]
["担当者連絡先","所属",null,null,"氏名"]
[null,"電話番号"]
[]
["給与所得者（納税義務者）"]
["個人番号\n（マイナンバー）"]
["宛名番号\n（税額通知に記載）"]
["氏名",null,null,null,"フリガナ"]
["受給者番号"]
["生年月日",null,null,"年",null,"月",null,"日"]
["1月1日現在の住所",null,null,null,null,null,null,null,null,"1.退職",1,"1.特別徴収継続",1]
["異動後の住所",null,null,null,null,null,null,null,null,"2.転勤",2,"2.一括徴収",2]
["特別徴収税額\n（年税額）",null,null,null,null,null,null,"円",null,"3.休職・長休",3,"3.普通徴収（本人納付）",3]
["徴収済税額",null,"月から",null,"月まで","合計",null,"円",null,"4.死亡",4,null,{"$f":"VLOOKUP(B26,L19:M21,2,FALSE)","v":{"$error":"#N/A"}}]
["未徴収税額",{"$f":"B21-G22","v":0},null,"円",null,null,null,null,null,"5.支払少額・不定期",5]
["異動年月日","令和",null,"年",null,"月",null,"日",null,"6.合併・解散",6]
["異動の事由",null,null,null,"7.その他\nの理由",null,null,null,null,"7.その他",7]
["異動後の未徴収\n税額の徴収方法",null,null,null,null,null,null,null,null,null,{"$f":"VLOOKUP(B25,J19:K25,2,FALSE)","v":{"$error":"#N/A"}}]
[]
["特別徴収継続の場合"]
["指定番号",null,null,"新規",null,"受給者番号"]
["法人番号\n（新規事業所の場合）"]
["住所又は\n所在地","郵便番号"]
[null,"住所"]
["特別徴収義務者名",null,null,null,"フリガナ"]
["月割額",null,null,"円",null,"月から","納入書の\n要否"]
["担当者連絡先","所属",null,null,"氏名"]
[null,"電話番号"]
[]
["一括徴収をする場合",null,null,null,null,null,null,null,null,"異動が12月31日までで、本人の申出があったため",1]
["一括徴収の理由",null,null,null,null,null,null,null,null,"異動が1月1日以後で特別徴収の継続の希望がないため",2]
["徴収予定月日","令和",null,"年",null,"月",null,"日",null,null,{"$f":"VLOOKUP(B39,J38:K39,2,FALSE)","v":{"$error":"#N/A"}}]
["納付予定月",null,"月分","(納期限)",{"$f":"IF(B41+1=13,\"1\",B41+1)","v":1},"月",null,"日"]
["徴収予定額",{"$f":"B23","v":0},null,"円"]
[]
["普通徴収の場合"]
["普通徴収の理由",null,null,null,null,null,null,null,null,"異動が12月31日までで、一括徴収の申出がないため",1]
[null,null,null,null,null,null,null,null,null,"5月31日までに支払われるべき給与又は退職手当等の額が未徴収税額（ウ）以下であるため",2]
[null,null,null,null,null,null,null,null,null,"死亡による退職であるため",3]
[null,null,null,null,null,null,null,null,null,null,{"$f":"VLOOKUP(B45,J45:K47,2,FALSE)","v":{"$error":"#N/A"}}]

{"sheet":"入力フォームあり","index":1,"n_rows":79,"n_cols":170,"rows_kept":79,"cut":false,"hidden":false,"merged":[[62,148,63,166],[34,16,37,51],[46,119,49,137],[44,52,48,63],[35,108,38,109],[35,112,38,116],[71,130,71,166],[71,82,71,86],[71,100,71,121],[58,84,60,87],[68,80,70,99],[68,100,70,126],[67,130,68,160],[69,130,70,134],[69,135,70,166],[40,108,43,109],[53,108,54,110],[53,111,54,113],[53,54,54,66],[56,23,58,77],[59,6,59,22],[69,12,69,27],[71,12,71,27],[69,28,69,30],[30,40,33,42],[14,11,16,13],[55,23,55,25],[55,26,55,77],[51,1,52,119],[53,1,64,5],[39,69,41,74],[39,84,41,89],[40,102,43,106],[35,75,41,81],[35,84,37,89],[35,90,41,96],[30,49,33,51],[44,16,49,51],[45,102,48,106],[45,108,48,109],[46,64,48,66],[46,79,48,81],[46,94,48,96],[35,118,45,121],[55,78,64,83],[55,84,57,87],[56,121,57,166],[62,137,63,141],[27,52,31,67],[30,28,33,30],[30,31,33,33],[30,34,33,36],[30,37,33,39],[52,159,53,166],[54,129,55,166],[54,121,55,128],[76,6,77,9],[75,114,76,117],[75,118,76,120],[75,121,76,124],[75,125,76,128],[75,129,76,132],[75,133,76,135],[75,136,76,139],[74,114,74,143],[74,144,75,157],[77,114,78,117],[77,149,77,158],[78,149,78,158],[75,140,76,143],[53,6,54,22],[55,6,58,22],[14,23,16,25],[14,20,16,22],[14,17,16,19],[13,127,15,134],[13,135,15,167],[38,5,43,15],[38,16,43,51],[24,140,26,167],[25,98,29,110],[27,5,29,15],[34,5,37,15],[35,69,37,74],[35,141,38,145],[36,147,45,151],[27,83,31,97],[44,5,49,15],[30,43,33,45],[27,39,29,42],[27,48,29,51],[27,43,29,47],[27,34,29,38],[27,30,29,33],[27,25,29,29],[27,16,29,24],[21,1,49,4],[21,5,22,15],[21,16,22,51],[21,111,33,139],[23,5,26,15],[23,16,26,51],[52,121,53,148],[30,46,33,48],[27,140,30,167],[30,5,33,15],[30,16,33,18],[30,19,33,21],[30,22,33,24],[30,25,33,27],[52,149,53,158],[53,87,54,89],[53,67,54,80],[53,81,54,83],[53,84,54,86],[27,68,30,82],[46,152,47,165],[24,52,26,67],[24,68,26,82],[24,83,26,97],[0,21,2,38],[7,1,10,33],[17,65,20,67],[17,68,20,70],[17,71,20,73],[17,92,20,94],[17,95,20,97],[17,98,20,100],[17,74,20,76],[17,77,20,79],[17,80,20,82],[17,83,20,85],[17,86,20,88],[17,89,20,91],[6,62,9,120],[14,26,16,32],[14,8,16,10],[14,14,16,16],[17,101,20,120],[17,43,20,61],[17,62,20,64],[14,3,16,7],[4,62,5,64],[4,65,5,120],[4,34,20,36],[4,37,20,42],[4,43,9,61],[4,121,6,134],[4,135,6,167],[7,121,9,134],[7,135,9,167],[10,43,11,61],[10,62,11,120],[10,121,20,126],[10,127,12,134],[10,135,12,167],[12,43,16,61],[12,62,16,120],[16,127,20,134],[16,135,20,167],[44,68,48,78],[44,83,48,93],[35,122,45,137],[35,99,38,103],[35,104,38,106],[53,90,54,92],[53,93,54,95],[53,96,54,98],[0,169,51,172],[1,108,3,120],[1,121,3,167],[71,31,71,79],[59,23,59,77],[55,88,57,119],[58,88,60,119],[53,23,54,53],[53,114,54,116],[53,117,54,119],[53,99,54,101],[53,102,54,104],[53,105,54,107],[69,31,69,79],[71,28,71,30],[78,12,78,56],[77,12,77,21],[77,22,77,24],[75,31,76,103],[75,28,76,30],[75,12,76,27],[36,152,45,166],[69,6,70,9],[71,122,71,125],[74,1,74,66],[74,111,78,113],[75,1,78,3],[59,120,60,135],[59,136,60,167],[60,6,64,22],[60,23,64,77],[61,84,64,87],[61,88,64,119],[61,120,64,135],[67,1,67,66],[68,1,71,3],[71,87,71,90],[71,96,71,98],[71,91,71,95]]}
[null,null,null,null,null,null,null,null,null,null,null,null,null,null,null,null,null,null,null,null,null,"給与支払報告\n特別徴収",null,null,null,null,null,null,null,null,null,null,null,null,null,null,null,null,null,null,null,null,null,null,null,null,null,null,null,null,null,null,null,null,null,null,null,null,null,null,null,null,null,null,null,null,null,null,null,null,null,null,null,null,null,null,null,null,null,null,null,null,null,null,null,null,null,null,null,null,null,null,null,null,null,null,null,null,null,null,null,null,null,null,null,null,null,null,null,null,null,null,null,null,null,null,null,null,null,null,null,null,null,null,null,null,null,null,null,null,null,null,null,null,null,null,null,null,null,null,null,null,null,null,null,null,null,null,null,null,null,null,null,null,null,null,null,null,null,null,null,null,null,null,null,null,null,null,null,"第十八号様式（用紙日本産業規格Ａ４）（第十条関係）"]
[null,null,null,null,null,null,null,null,null,null,null,null,null,null,null,null,null,null,null,null,null,null,null,null,null,null,null,null,null,null,null,null,null,null,null,null,null,null,null,null,null,null,null,null,null,null,null,null,null,null,null,null,null,null,null,null,null,null,null,null,null,null,null,null,null,null,null,null,null,null,null,null,null,null,null,null,null,null,null,null,null,null,null,null,null,null,null,null,null,null,null,null,null,null,null,null,null,null,null,null,null,null,null,null,null,null,null,null,"年 度",null,null,null,null,null,null,null,null,null,null,null,null,{"$f":"入力フォーム!B5","v":0}]
[]
[]
[null,null,null,null,null,null,null,null,null,null,null,null,null,null,null,null,null,null,null,null,null,null,null,null,null,null,null,null,null,null,null,null,null,null,"給与支払者",null,null,"義務者\n特別徴収",null,null,null,null,null,"所　在　地",null,null,null,null,null,null,null,null,null,null,null,null,null,null,null,null,null,null,"〒",null,null,{"$f":"入力フォーム!C8","v":0},null,null,null,null,null,null,null,null,null,null,null,null,null,null,null,null,null,null,null,null,null,null,null,null,null,null,null,null,null,null,null,null,null,null,null,null,null,null,null,null,null,null,null,null,null,null,null,null,null,null,null,null,null,null,null,"特別徴収義務者\n指　定　番　号",null,null,null,null,null,null,null,null,null,null,null,null,null,{"$f":"入力フォーム!F5","v":0}]
[]
[null,null,null,null,null,null,null,null,null,null,null,null,null,null,null,null,null,null,null,null,null,null,null,null,null,null,null,null,null,null,null,null,null,null,null,null,null,null,null,null,null,null,null,null,null,null,null,null,null,null,null,null,null,null,null,null,null,null,null,null,null,null,{"$f":"入力フォーム!C9","v":0}]
[null,"坂井市長殿 ",null,null,null,null,null,null,null,null,null,null,null,null,null,null,null,null,null,null,null,null,null,null,null,null,null,null,null,null,null,null,null,null,null,null,null,null,null,null,null,null,null,null,null,null,null,null,null,null,null,null,null,null,null,null,null,null,null,null,null,null,null,null,null,null,null,null,null,null,null,null,null,null,null,null,null,null,null,null,null,null,null,null,null,null,null,null,null,null,null,null,null,null,null,null,null,null,null,null,null,null,null,null,null,null,null,null,null,null,null,null,null,null,null,null,null,null,null,null,null,"宛 名 番 号",null,null,null,null,null,null,null,null,null,null,null,null,null,{"$f":"入力フォーム!B15","v":0}]
[]
[]
[null,null,null,null,null,null,null,null,null,null,null,null,null,null,null,null,null,null,null,null,null,null,null,null,null,null,null,null,null,null,null,null,null,null,null,null,null,null,null,null,null,null,null,"フリガナ",null,null,null,null,null,null,null,null,null,null,null,null,null,null,null,null,null,null,{"$f":"入力フォーム!F6","v":0},null,null,null,null,null,null,null,null,null,null,null,null,null,null,null,null,null,null,null,null,null,null,null,null,null,null,null,null,null,null,null,null,null,null,null,null,null,null,null,null,null,null,null,null,null,null,null,null,null,null,null,null,null,null,null,null,null,null,"連　絡　先\n担　当　者",null,null,null,null,null,"所 属",null,null,null,null,null,null,null,{"$f":"入力フォーム!C10","v":0}]
[]
[null,null,null,null,null,null,null,null,null,null,null,null,null,null,null,null,null,null,null,null,null,null,null,null,null,null,null,null,null,null,null,null,null,null,null,null,null,null,null,null,null,null,null,"氏名又は名称",null,null,null,null,null,null,null,null,null,null,null,null,null,null,null,null,null,null,{"$f":"入力フォーム!B6","v":0}]
[null,null,null,null,null,null,null,null,null,null,null,null,null,null,null,null,null,null,null,null,null,null,null,null,null,null,null,null,null,null,null,null,null,null,null,null,null,null,null,null,null,null,null,null,null,null,null,null,null,null,null,null,null,null,null,null,null,null,null,null,null,null,null,null,null,null,null,null,null,null,null,null,null,null,null,null,null,null,null,null,null,null,null,null,null,null,null,null,null,null,null,null,null,null,null,null,null,null,null,null,null,null,null,null,null,null,null,null,null,null,null,null,null,null,null,null,null,null,null,null,null,null,null,null,null,null,null,"氏 名",null,null,null,null,null,null,null,{"$f":"入力フォーム!F10","v":0}]
[null,null,null,"令和",null,null,null,null,{"$f":"入力フォーム!C2","v":0},null,null,"年",null,null,{"$f":"入力フォーム!E2","v":0},null,null,"月",null,null,{"$f":"入力フォーム!G2","v":0},null,null,"日",null,null,"提出"]
[]
[null,null,null,null,null,null,null,null,null,null,null,null,null,null,null,null,null,null,null,null,null,null,null,null,null,null,null,null,null,null,null,null,null,null,null,null,null,null,null,null,null,null,null,null,null,null,null,null,null,null,null,null,null,null,null,null,null,null,null,null,null,null,null,null,null,null,null,null,null,null,null,null,null,null,null,null,null,null,null,null,null,null,null,null,null,null,null,null,null,null,null,null,null,null,null,null,null,null,null,null,null,null,null,null,null,null,null,null,null,null,null,null,null,null,null,null,null,null,null,null,null,null,null,null,null,null,null,"電 話",null,null,null,null,null,null,null,{"$f":"入力フォーム!C11","v":0}]
[null,null,null,null,null,null,null,null,null,null,null,null,null,null,null,null,null,null,null,null,null,null,null,null,null,null,null,null,null,null,null,null,null,null,null,null,null,null,null,null,null,null,null,"個人番号\n又は法人番号",null,null,null,null,null,null,null,null,null,null,null,null,null,null,null,null,null,null,{"$f":"MID(入力フォーム!$B$7,1,1)","v":""},null,null,{"$f":"MID(入力フォーム!$B$7,2,1)","v":""},null,null,{"$f":"MID(入力フォーム!$B$7,3,1)","v":""},null,null,{"$f":"MID(入力フォーム!$B$7,4,1)","v":""},null,null,{"$f":"MID(入力フォーム!$B$7,5,1)","v":""},null,null,{"$f":"MID(入力フォーム!$B$7,6,1)","v":""},null,null,{"$f":"MID(入力フォーム!$B$7,7,1)","v":""},null,null,{"$f":"MID(入力フォーム!$B$7,8,1)","v":""},null,null,{"$f":"MID(入力フォーム!$B$7,9,1)","v":""},null,null,{"$f":"MID(入力フォーム!$B$7,10,1)","v":""},null,null,{"$f":"MID(入力フォーム!$B$7,11,1)","v":""},null,null,{"$f":"MID(入力フォーム!$B$7,12,1)","v":""},null,null,{"$f":"MID(入力フォーム!$B$7,13,1)","v":""},null,null,"←個人番号の記載に当たっては、\n　左端を空欄とし右詰めで記載"]
[]
[]
[]
[null,"給　与　所　得　者",null,null,null,"フリガナ",null,null,null,null,null,null,null,null,null,null,{"$f":"入力フォーム!F16","v":0},null,null,null,null,null,null,null,null,null,null,null,null,null,null,null,null,null,null,null,null,null,null,null,null,null,null,null,null,null,null,null,null,null,null,null,null,null,null,null,null,null,null,null,null,null,null,null,null,null,null,null,null,null,null,null,null,null,null,null,null,null,null,null,null,null,null,null,null,null,null,null,null,null,null,null,null,null,null,null,null,null,null,null,null,null,null,null,null,null,null,null,null,null,null,"異　動　の　事　由"]
[]
[null,null,null,null,null,"氏　名",null,null,null,null,null,null,null,null,null,null,{"$f":"入力フォーム!B16","v":0}]
[null,null,null,null,null,null,null,null,null,null,null,null,null,null,null,null,null,null,null,null,null,null,null,null,null,null,null,null,null,null,null,null,null,null,null,null,null,null,null,null,null,null,null,null,null,null,null,null,null,null,null,null,"（ア）",null,null,null,null,null,null,null,null,null,null,null,null,null,null,null,"（イ）",null,null,null,null,null,null,null,null,null,null,null,null,null,null,"（ウ）",null,null,null,null,null,null,null,null,null,null,null,null,null,null,null,null,null,null,null,null,null,null,null,null,null,null,null,null,null,null,null,null,null,null,null,null,null,null,null,null,null,null,null,null,null,null,null,null,null,null,null,null,null,null,null,null,"異動後の未徴収"]
[null,null,null,null,null,null,null,null,null,null,null,null,null,null,null,null,null,null,null,null,null,null,null,null,null,null,null,null,null,null,null,null,null,null,null,null,null,null,null,null,null,null,null,null,null,null,null,null,null,null,null,null,null,null,null,null,null,null,null,null,null,null,null,null,null,null,null,null,null,null,null,null,null,null,null,null,null,null,null,null,null,null,null,null,null,null,null,null,null,null,null,null,null,null,null,null,null,null,"異  　動\n年 月 日"]
[]
[null,null,null,null,null,"生年月日",null,null,null,null,null,null,null,null,null,null,{"$f":"入力フォーム!B18","v":0},null,null,null,null,null,null,null,null,{"$f":"入力フォーム!C18","v":0},null,null,null,null,"年",null,null,null,{"$f":"入力フォーム!E18","v":0},null,null,null,null,"月",null,null,null,{"$f":"入力フォーム!G18","v":0},null,null,null,null,"日",null,null,null,"特別徴収税額\n（年税額）",null,null,null,null,null,null,null,null,null,null,null,null,null,null,null,"徴収済額",null,null,null,null,null,null,null,null,null,null,null,null,null,null,"未徴収税額\n(ア)－(イ)",null,null,null,null,null,null,null,null,null,null,null,null,null,null,null,null,null,null,null,null,null,null,null,null,null,null,null,null,null,null,null,null,null,null,null,null,null,null,null,null,null,null,null,null,null,null,null,null,null,null,null,null,null,null,null,null,"税額の徴収方法"]
[]
[]
[null,null,null,null,null,"個人番号",null,null,null,null,null,null,null,null,null,null,{"$f":"MID(入力フォーム!$B$14,1,1)","v":""},null,null,{"$f":"MID(入力フォーム!$B$14,2,1)","v":""},null,null,{"$f":"MID(入力フォーム!$B$14,3,1)","v":""},null,null,{"$f":"MID(入力フォーム!$B$14,4,1)","v":""},null,null,{"$f":"MID(入力フォーム!$B$14,5,1)","v":""},null,null,{"$f":"MID(入力フォーム!$B$14,6,1)","v":""},null,null,{"$f":"MID(入力フォーム!$B$14,7,1)","v":""},null,null,{"$f":"MID(入力フォーム!$B$14,8,1)","v":""},null,null,{"$f":"MID(入力フォーム!$B$14,9,1)","v":""},null,null,{"$f":"MID(入力フォーム!$B$14,10,1)","v":""},null,null,{"$f":"MID(入力フォーム!$B$14,11,1)","v":""},null,null,{"$f":"MID(入力フォーム!$B$14,12,1)","v":""}]
[]
[]
[]
[null,null,null,null,null,"受給者番号",null,null,null,null,null,null,null,null,null,null,{"$f":"入力フォーム!B17","v":0}]
[null,null,null,null,null,null,null,null,null,null,null,null,null,null,null,null,null,null,null,null,null,null,null,null,null,null,null,null,null,null,null,null,null,null,null,null,null,null,null,null,null,null,null,null,null,null,null,null,null,null,null,null,null,null,null,null,null,null,null,null,null,null,null,null,null,null,null,null,null,{"$f":"入力フォーム!B22","v":0},null,null,null,null,null,"月から\n\n月まで",null,null,null,null,null,null,null,null,{"$f":"IF(BR40=\"\",\"\",IF(BR40=12,1,BR40+1))","v":""},null,null,null,null,null,"月から\n\n月まで",null,null,null,null,null,null,null,null,"令和",null,null,null,null,{"$f":"入力フォーム!C24","v":0},null,null,null,"年",null,null,null,{"$f":"_xlfn.IFNA(入力フォーム!K26,\" \")","v":" "},null,null,null,null,null,"1.\n2.\n3.\n4.\n5.\n6.\n7.\n",null,null,null,"退職\n転勤\n休職・長欠\n死亡\n支払少額・不定期\n合併・解散\nその他",null,null,null,null,null,null,null,null,null,null,null,null,null,null,null,null,null,null,{"$f":"_xlfn.IFNA(入力フォーム!M22,\" \")","v":" "}]
[null,null,null,null,null,null,null,null,null,null,null,null,null,null,null,null,null,null,null,null,null,null,null,null,null,null,null,null,null,null,null,null,null,null,null,null,null,null,null,null,null,null,null,null,null,null,null,null,null,null,null,null,null,null,null,null,null,null,null,null,null,null,null,null,null,null,null,null,null,null,null,null,null,null,null,null,null,null,null,null,null,null,null,null,null,null,null,null,null,null,null,null,null,null,null,null,null,null,null,null,null,null,null,null,null,null,null,null,null,null,null,null,null,null,null,null,null,null,null,null,null,null,null,null,null,null,null,null,null,null,null,null,null,null,null,null,null,null,null,null,null,null,null,null,null,null,null,"１．\n２．\n３．",null,null,null,null,"特別徴収継続\n一括徴収\n普通徴収"]
[]
[null,null,null,null,null,"１月１日\n現在の住所",null,null,null,null,null,null,null,null,null,null,{"$f":"入力フォーム!B19","v":0}]
[null,null,null,null,null,null,null,null,null,null,null,null,null,null,null,null,null,null,null,null,null,null,null,null,null,null,null,null,null,null,null,null,null,null,null,null,null,null,null,null,null,null,null,null,null,null,null,null,null,null,null,null,null,null,null,null,null,null,null,null,null,null,null,null,null,null,null,null,null,{"$f":"IF(入力フォーム!D22=\"\",\"\",入力フォーム!D22)","v":""},null,null,null,null,null,null,null,null,null,null,null,null,null,null,{"$f":"IF(CG36<>\"\",5,\"\")","v":""}]
[null,null,null,null,null,null,null,null,null,null,null,null,null,null,null,null,null,null,null,null,null,null,null,null,null,null,null,null,null,null,null,null,null,null,null,null,null,null,null,null,null,null,null,null,null,null,null,null,null,null,null,null,null,null,null,null,null,null,null,null,null,null,null,null,null,null,null,null,null,null,null,null,null,null,null,null,null,null,null,null,null,null,null,null,null,null,null,null,null,null,null,null,null,null,null,null,null,null,null,null,null,null,{"$f":"入力フォーム!E24","v":0},null,null,null,null,null,"月"]
[]
[]
[]
[null,null,null,null,null,"異動後の\n住 所",null,null,null,null,null,null,null,null,null,null,{"$f":"入力フォーム!B20","v":0},null,null,null,null,null,null,null,null,null,null,null,null,null,null,null,null,null,null,null,null,null,null,null,null,null,null,null,null,null,null,null,null,null,null,null,{"$f":"入力フォーム!B21","v":0},null,null,null,null,null,null,null,null,null,null,null,null,null,null,null,{"$f":"入力フォーム!G22","v":0},null,null,null,null,null,null,null,null,null,null,null,null,null,null,{"$f":"入力フォーム!B23","v":0}]
[null,null,null,null,null,null,null,null,null,null,null,null,null,null,null,null,null,null,null,null,null,null,null,null,null,null,null,null,null,null,null,null,null,null,null,null,null,null,null,null,null,null,null,null,null,null,null,null,null,null,null,null,null,null,null,null,null,null,null,null,null,null,null,null,null,null,null,null,null,null,null,null,null,null,null,null,null,null,null,null,null,null,null,null,null,null,null,null,null,null,null,null,null,null,null,null,null,null,null,null,null,null,{"$f":"入力フォーム!G24","v":0},null,null,null,null,null,"日"]
[null,null,null,null,null,null,null,null,null,null,null,null,null,null,null,null,null,null,null,null,null,null,null,null,null,null,null,null,null,null,null,null,null,null,null,null,null,null,null,null,null,null,null,null,null,null,null,null,null,null,null,null,null,null,null,null,null,null,null,null,null,null,null,null,"円",null,null,null,null,null,null,null,null,null,null,null,null,null,null,"円",null,null,null,null,null,null,null,null,null,null,null,null,null,null,"円",null,null,null,null,null,null,null,null,null,null,null,null,null,null,null,null,null,null,null,null,null,null,null,null,{"$f":"入力フォーム!F25","v":0},null,null,null,null,null,null,null,null,null,null,null,null,null,null,null,null,null,null,null,null,null,null,null,null,null,null,null,null,null,null,null,null,"(本人納付)"]
[]
[]
[]
[]
[null,"１．特別徴収継続の場合"]
[null,null,null,null,null,null,null,null,null,null,null,null,null,null,null,null,null,null,null,null,null,null,null,null,null,null,null,null,null,null,null,null,null,null,null,null,null,null,null,null,null,null,null,null,null,null,null,null,null,null,null,null,null,null,null,null,null,null,null,null,null,null,null,null,null,null,null,null,null,null,null,null,null,null,null,null,null,null,null,null,null,null,null,null,null,null,null,null,null,null,null,null,null,null,null,null,null,null,null,null,null,null,null,null,null,null,null,null,null,null,null,null,null,null,null,null,null,null,null,null,null,"新しい勤務先へは、月割額",null,null,null,null,null,null,null,null,null,null,null,null,null,null,null,null,null,null,null,null,null,null,null,null,null,null,null,{"$f":"入力フォーム!B34","v":0},null,null,null,null,null,null,null,null,null,"円を"]
[null,"特別徴収義務者\n新しい勤務先",null,null,null,null,"特別徴収義務者\n指　定　番　号",null,null,null,null,null,null,null,null,null,null,null,null,null,null,null,null,{"$f":"入力フォーム!B29","v":0},null,null,null,null,null,null,null,null,null,null,null,null,null,null,null,null,null,null,null,null,null,null,null,null,null,null,null,null,null,null,{"$f":"IF(入力フォーム!E29=\"〇\",\"新規\",\"\")","v":""},null,null,null,null,null,null,null,null,null,null,null,null,"法 人 番 号",null,null,null,null,null,null,null,null,null,null,null,null,null,{"$f":"MID(入力フォーム!$B$30,1,1)","v":""},null,null,{"$f":"MID(入力フォーム!$B$30,2,1)","v":""},null,null,{"$f":"MID(入力フォーム!$B$30,3,1)","v":""},null,null,{"$f":"MID(入力フォーム!$B$30,4,1)","v":""},null,null,{"$f":"MID(入力フォーム!$B$30,5,1)","v":""},null,null,{"$f":"MID(入力フォーム!$B$30,6,1)","v":""},null,null,{"$f":"MID(入力フォーム!$B$30,7,1)","v":""},null,null,{"$f":"MID(入力フォーム!$B$30,8,1)","v":""},null,null,{"$f":"MID(入力フォーム!$B$30,9,1)","v":""},null,null,{"$f":"MID(入力フォーム!$B$30,10,1)","v":""},null,null,{"$f":"MID(入力フォーム!$B$30,11,1)","v":""},null,null,{"$f":"MID(入力フォーム!$B$30,12,1)","v":""},null,null,{"$f":"MID(入力フォーム!$B$30,13,1)","v":""}]
[null,null,null,null,null,null,null,null,null,null,null,null,null,null,null,null,null,null,null,null,null,null,null,null,null,null,null,null,null,null,null,null,null,null,null,null,null,null,null,null,null,null,null,null,null,null,null,null,null,null,null,null,null,null,null,null,null,null,null,null,null,null,null,null,null,null,null,null,null,null,null,null,null,null,null,null,null,null,null,null,null,null,null,null,null,null,null,null,null,null,null,null,null,null,null,null,null,null,null,null,null,null,null,null,null,null,null,null,null,null,null,null,null,null,null,null,null,null,null,null,null,{"$f":"入力フォーム!E34","v":0},null,null,null,null,null,null,null,"月分（翌月10日納入期限分）から"]
[null,null,null,null,null,null,"所　在　地",null,null,null,null,null,null,null,null,null,null,null,null,null,null,null,null,"〒",null,null,{"$f":"入力フォーム!C31","v":0},null,null,null,null,null,null,null,null,null,null,null,null,null,null,null,null,null,null,null,null,null,null,null,null,null,null,null,null,null,null,null,null,null,null,null,null,null,null,null,null,null,null,null,null,null,null,null,null,null,null,null,"担当者連絡先",null,null,null,null,null,"所　属",null,null,null,{"$f":"入力フォーム!C35","v":0}]
[null,null,null,null,null,null,null,null,null,null,null,null,null,null,null,null,null,null,null,null,null,null,null,{"$f":"入力フォーム!C32","v":0},null,null,null,null,null,null,null,null,null,null,null,null,null,null,null,null,null,null,null,null,null,null,null,null,null,null,null,null,null,null,null,null,null,null,null,null,null,null,null,null,null,null,null,null,null,null,null,null,null,null,null,null,null,null,null,null,null,null,null,null,null,null,null,null,null,null,null,null,null,null,null,null,null,null,null,null,null,null,null,null,null,null,null,null,null,null,null,null,null,null,null,null,null,null,null,null,null,"徴収し、納入するよう連絡済みです。"]
[]
[null,null,null,null,null,null,null,null,null,null,null,null,null,null,null,null,null,null,null,null,null,null,null,null,null,null,null,null,null,null,null,null,null,null,null,null,null,null,null,null,null,null,null,null,null,null,null,null,null,null,null,null,null,null,null,null,null,null,null,null,null,null,null,null,null,null,null,null,null,null,null,null,null,null,null,null,null,null,null,null,null,null,null,null,"氏　名",null,null,null,{"$f":"入力フォーム!F35","v":0}]
[null,null,null,null,null,null,"フリガナ",null,null,null,null,null,null,null,null,null,null,null,null,null,null,null,null,{"$f":"入力フォーム!F33","v":0},null,null,null,null,null,null,null,null,null,null,null,null,null,null,null,null,null,null,null,null,null,null,null,null,null,null,null,null,null,null,null,null,null,null,null,null,null,null,null,null,null,null,null,null,null,null,null,null,null,null,null,null,null,null,null,null,null,null,null,null,null,null,null,null,null,null,null,null,null,null,null,null,null,null,null,null,null,null,null,null,null,null,null,null,null,null,null,null,null,null,null,null,null,null,null,null,"受給者番号",null,null,null,null,null,null,null,null,null,null,null,null,null,null,null,{"$f":"入力フォーム!G29","v":0}]
[null,null,null,null,null,null,"氏名又は名称",null,null,null,null,null,null,null,null,null,null,null,null,null,null,null,null,{"$f":"入力フォーム!B33","v":0}]
[null,null,null,null,null,null,null,null,null,null,null,null,null,null,null,null,null,null,null,null,null,null,null,null,null,null,null,null,null,null,null,null,null,null,null,null,null,null,null,null,null,null,null,null,null,null,null,null,null,null,null,null,null,null,null,null,null,null,null,null,null,null,null,null,null,null,null,null,null,null,null,null,null,null,null,null,null,null,null,null,null,null,null,null,"電　話",null,null,null,{"$f":"入力フォーム!C36","v":0},null,null,null,null,null,null,null,null,null,null,null,null,null,null,null,null,null,null,null,null,null,null,null,null,null,null,null,null,null,null,null,"納入書の要否\n（新規の場合のみ記載）"]
[null,null,null,null,null,null,null,null,null,null,null,null,null,null,null,null,null,null,null,null,null,null,null,null,null,null,null,null,null,null,null,null,null,null,null,null,null,null,null,null,null,null,null,null,null,null,null,null,null,null,null,null,null,null,null,null,null,null,null,null,null,null,null,null,null,null,null,null,null,null,null,null,null,null,null,null,null,null,null,null,null,null,null,null,null,null,null,null,null,null,null,null,null,null,null,null,null,null,null,null,null,null,null,null,null,null,null,null,null,null,null,null,null,null,null,null,null,null,null,null,null,null,null,null,null,null,null,null,null,null,null,null,null,null,null,null,null,{"$f":"IF(入力フォーム!H34=\"必要\",1,IF(入力フォーム!H34=\"不要\",2,\"\"))","v":""},null,null,null,null,null,null,null,null,null,null,"1.必要　2.不要"]
[]
[]
[]
[]
[null,"２．一括徴収の場合",null,null,null,null,null,null,null,null,null,null,null,null,null,null,null,null,null,null,null,null,null,null,null,null,null,null,null,null,null,null,null,null,null,null,null,null,null,null,null,null,null,null,null,null,null,null,null,null,null,null,null,null,null,null,null,null,null,null,null,null,null,null,null,null,null,null,null,null,null,null,null,null,null,null,null,null,null,null,null,null,null,null,null,null,null,null,null,null,null,null,null,null,null,null,null,null,null,null,null,null,null,null,null,null,null,null,null,null,null,null,null,null,null,null,null,null,null,null,null,null,null,null,null,null,null,null,null,null,"左記の一括徴収した税額は、"]
[null,"理　由",null,null,null,null,null,null,null,null,null,null,null,null,null,null,null,null,null,null,null,null,null,null,null,null,null,null,null,null,null,null,null,null,null,null,null,null,null,null,null,null,null,null,null,null,null,null,null,null,null,null,null,null,null,null,null,null,null,null,null,null,null,null,null,null,null,null,null,null,null,null,null,null,null,null,null,null,null,null,"徴収予定月日",null,null,null,null,null,null,null,null,null,null,null,null,null,null,null,null,null,null,null,"徴収予定額\n（上記（ウ）と同額）"]
[null,null,null,null,null,null,{"$f":"_xlfn.IFNA(入力フォーム!K40,\" \")","v":" "},null,null,null,null,null,"１．異動が令和　",null,null,null,null,null,null,null,null,null,null,null,null,null,null,null,{"$f":"IF(CY41<6,DA36-1,IF(CY41<13,DA36,\"\"))","v":-1},null,null,"年12月31日までで、一括徴収の申出があったため",null,null,null,null,null,null,null,null,null,null,null,null,null,null,null,null,null,null,null,null,null,null,null,null,null,null,null,null,null,null,null,null,null,null,null,null,null,null,null,null,null,null,null,null,null,null,null,null,null,null,null,null,null,null,null,null,null,null,null,null,null,null,null,null,null,null,null,null,null,null,null,null,null,null,null,null,null,null,null,null,null,null,null,null,null,null,null,null,null,null,null,null,null,null,null,null,null,null,{"$f":"入力フォーム!B41","v":0},null,null,null,null,"月分(翌月10日納入期限分)で"]
[]
[null,null,null,null,null,null,null,null,null,null,null,null,"２．異動が令和　",null,null,null,null,null,null,null,null,null,null,null,null,null,null,null,{"$f":"AC70+1","v":0},null,null,"年１月１日以降で、特別徴収の継続の申出がないため",null,null,null,null,null,null,null,null,null,null,null,null,null,null,null,null,null,null,null,null,null,null,null,null,null,null,null,null,null,null,null,null,null,null,null,null,null,null,null,null,null,null,null,null,null,null,null,null,null,null,{"$f":"入力フォーム!E40","v":0},null,null,null,null,"月",null,null,null,{"$f":"入力フォーム!G40","v":0},null,null,null,null,"日",null,null,null,{"$f":"入力フォーム!F42","v":0},null,null,null,null,null,null,null,null,null,null,null,null,null,null,null,null,null,null,null,null,null,"円",null,null,null,null,null,null,null,"納入します。"]
[]
[]
[null,"３．普通徴収の場合",null,null,null,null,null,null,null,null,null,null,null,null,null,null,null,null,null,null,null,null,null,null,null,null,null,null,null,null,null,null,null,null,null,null,null,null,null,null,null,null,null,null,null,null,null,null,null,null,null,null,null,null,null,null,null,null,null,null,null,null,null,null,null,null,null,null,null,null,null,null,null,null,null,null,null,null,null,null,null,null,null,null,null,null,null,null,null,null,null,null,null,null,null,null,null,null,null,null,null,null,null,null,null,null,null,null,null,null,null,"※市町村記入欄",null,null,"住民コード",null,null,null,null,null,null,null,null,null,null,null,null,null,null,null,null,null,null,null,null,null,null,null,null,null,null,null,null,null,"賦課年度"]
[null,"理　由",null,null,null,null,null,null,null,null,null,null,"１．異動が令和",null,null,null,null,null,null,null,null,null,null,null,null,null,null,null,{"$f":"IF(CY41<6,DA36-1,IF(CY41<13,DA36,\"\"))","v":-1},null,null,"年12月31日までで、一括徴収の申出がないため"]
[null,null,null,null,null,null,{"$f":"_xlfn.IFNA(入力フォーム!K48,\" \")","v":" "},null,null,null,null,null,null,null,null,null,null,null,null,null,null,null,null,null,null,null,null,null,{"$f":"IF(CY48<6,DA43-1,IF(CY48<13,DA43,\"\"))","v":-1}]
[null,null,null,null,null,null,null,null,null,null,null,null,"２．令和",null,null,null,null,null,null,null,null,null,{"$f":"IF(CY41<6,DA36-1,IF(CY41<13,DA36,\"\"))","v":-1},null,null,"年5月31日までに支払われるべき給与又は退職手当等の額が未徴収税額（ウ）以下であるため",null,null,null,null,null,null,null,null,null,null,null,null,null,null,null,null,null,null,null,null,null,null,null,null,null,null,null,null,null,null,null,null,null,null,null,null,null,null,null,null,null,null,null,null,null,null,null,null,null,null,null,null,null,null,null,null,null,null,null,null,null,null,null,null,null,null,null,null,null,null,null,null,null,null,null,null,null,null,null,null,null,null,null,null,null,null,null,null,"備考",null,null,null,null,null,null,null,null,null,null,null,null,null,null,null,null,null,null,null,null,null,null,null,null,null,null,null,null,null,null,null,null,null,null,"□つづり入力"]
[null,null,null,null,null,null,null,null,null,null,null,null,"３．死亡による退職であるため",null,null,null,null,null,null,null,null,null,null,null,null,null,null,null,null,null,null,null,null,null,null,null,null,null,null,null,null,null,null,null,null,null,null,null,null,null,null,null,null,null,null,null,null,null,null,null,null,null,null,null,null,null,null,null,null,null,null,null,null,null,null,null,null,null,null,null,null,null,null,null,null,null,null,null,null,null,null,null,null,null,null,null,null,null,null,null,null,null,null,null,null,null,null,null,null,null,null,null,null,null,null,null,null,null,null,null,null,null,null,null,null,null,null,null,null,null,null,null,null,null,null,null,null,null,null,null,null,null,null,null,null,null,null,null,null,"□ＴＥＬ済"]

{"sheet":"入力フォームなし","index":2,"n_rows":79,"n_cols":170,"rows_kept":79,"cut":false,"hidden":false,"merged":[[77,149,77,158],[78,12,78,56],[78,149,78,158],[69,12,69,79],[71,12,71,79],[75,12,76,103],[75,129,76,132],[75,133,76,135],[75,136,76,139],[75,140,76,143],[71,130,71,166],[74,144,75,157],[76,6,77,9],[77,114,78,117],[75,114,76,117],[75,118,76,120],[75,121,76,124],[75,125,76,128],[71,96,71,98],[71,100,71,121],[71,122,71,125],[74,1,74,66],[74,111,78,113],[74,114,74,143],[75,1,78,3],[71,82,71,86],[71,87,71,90],[71,91,71,95],[69,6,70,9],[69,130,70,134],[69,135,70,166],[61,84,64,87],[61,88,64,119],[61,120,64,135],[62,137,63,141],[62,148,63,166],[67,1,67,66],[67,130,68,160],[68,1,71,3],[68,80,70,99],[68,100,70,126],[56,121,57,166],[58,84,60,87],[58,88,60,119],[59,6,59,22],[59,23,59,77],[59,120,60,135],[59,136,60,167],[60,6,64,22],[60,23,64,77],[55,26,55,77],[55,78,64,83],[55,84,57,87],[55,88,57,119],[53,96,54,98],[53,99,54,101],[53,102,54,104],[53,105,54,107],[53,108,54,110],[53,111,54,113],[53,67,54,80],[53,81,54,83],[53,84,54,86],[53,87,54,89],[53,90,54,92],[53,93,54,95],[56,23,58,77],[51,1,52,119],[52,121,53,148],[52,149,53,158],[52,159,53,166],[53,1,64,5],[53,6,54,22],[53,23,54,53],[53,54,54,66],[44,16,49,51],[44,52,48,63],[44,68,48,78],[44,83,48,93],[45,102,48,106],[45,108,48,109],[46,64,48,66],[46,79,48,81],[46,94,48,96],[21,1,49,4],[53,114,54,116],[53,117,54,119],[54,121,55,128],[54,129,55,166],[55,6,58,22],[55,23,55,25],[35,141,38,145],[36,147,45,151],[36,152,45,166],[38,5,43,15],[38,16,43,51],[39,69,41,74],[39,84,41,89],[40,102,43,106],[40,108,43,109],[44,5,49,15],[35,99,38,103],[35,104,38,106],[35,108,38,109],[35,112,38,116],[35,118,45,121],[35,122,45,137],[34,5,37,15],[34,16,37,51],[35,69,37,74],[35,75,41,81],[35,84,37,89],[35,90,41,96],[46,119,49,137],[46,152,47,165],[30,31,33,33],[30,34,33,36],[30,37,33,39],[30,40,33,42],[30,43,33,45],[30,46,33,48],[30,5,33,15],[30,16,33,18],[30,19,33,21],[30,22,33,24],[30,25,33,27],[30,28,33,30],[27,5,29,15],[27,16,29,24],[27,25,29,29],[27,30,29,33],[27,34,29,38],[27,39,29,42],[17,95,20,97],[17,98,20,100],[17,101,20,120],[21,5,22,15],[21,16,22,51],[21,111,33,139],[23,5,26,15],[23,16,26,51],[24,52,26,67],[17,77,20,79],[17,80,20,82],[17,83,20,85],[17,86,20,88],[17,89,20,91],[17,92,20,94],[27,43,29,47],[27,48,29,51],[27,52,31,67],[14,3,16,7],[14,8,16,10],[14,11,16,13],[14,14,16,16],[14,17,16,19],[14,20,16,22],[4,135,6,167],[6,62,9,120],[7,1,10,33],[7,121,9,134],[7,135,9,167],[10,43,11,61],[10,62,11,120],[10,121,20,126],[10,127,12,134],[10,135,12,167],[14,23,16,25],[14,26,16,32],[16,127,20,134],[16,135,20,167],[17,43,20,61],[17,62,20,64],[17,65,20,67],[17,68,20,70],[0,21,2,38],[0,169,51,172],[1,108,3,120],[1,121,3,167],[4,34,20,36],[4,37,20,42],[4,43,9,61],[4,62,5,64],[4,65,5,120],[4,121,6,134],[17,71,20,73],[17,74,20,76],[12,43,16,61],[12,62,16,120],[13,127,15,134],[13,135,15,167],[27,68,30,82],[27,83,31,97],[27,140,30,167],[30,49,33,51],[24,68,26,82],[24,83,26,97],[24,140,26,167],[25,98,29,110]]}
[null,null,null,null,null,null,null,null,null,null,null,null,null,null,null,null,null,null,null,null,null,"給与支払報告\n特別徴収",null,null,null,null,null,null,null,null,null,null,null,null,null,null,null,null,null,null,null,null,null,null,null,null,null,null,null,null,null,null,null,null,null,null,null,null,null,null,null,null,null,null,null,null,null,null,null,null,null,null,null,null,null,null,null,null,null,null,null,null,null,null,null,null,null,null,null,null,null,null,null,null,null,null,null,null,null,null,null,null,null,null,null,null,null,null,null,null,null,null,null,null,null,null,null,null,null,null,null,null,null,null,null,null,null,null,null,null,null,null,null,null,null,null,null,null,null,null,null,null,null,null,null,null,null,null,null,null,null,null,null,null,null,null,null,null,null,null,null,null,null,null,null,null,null,null,null,"第十八号様式（用紙日本産業規格Ａ４）（第十条関係）"]
[null,null,null,null,null,null,null,null,null,null,null,null,null,null,null,null,null,null,null,null,null,null,null,null,null,null,null,null,null,null,null,null,null,null,null,null,null,null,null,null,null,null,null,null,null,null,null,null,null,null,null,null,null,null,null,null,null,null,null,null,null,null,null,null,null,null,null,null,null,null,null,null,null,null,null,null,null,null,null,null,null,null,null,null,null,null,null,null,null,null,null,null,null,null,null,null,null,null,null,null,null,null,null,null,null,null,null,null,"年 度"]
[]
[]
[null,null,null,null,null,null,null,null,null,null,null,null,null,null,null,null,null,null,null,null,null,null,null,null,null,null,null,null,null,null,null,null,null,null,"給与支払者",null,null,"義務者\n特別徴収",null,null,null,null,null,"所　在　地",null,null,null,null,null,null,null,null,null,null,null,null,null,null,null,null,null,null,"〒",null,null,null,null,null,null,null,null,null,null,null,null,null,null,null,null,null,null,null,null,null,null,null,null,null,null,null,null,null,null,null,null,null,null,null,null,null,null,null,null,null,null,null,null,null,null,null,null,null,null,null,null,null,null,null,null,null,null,"特別徴収義務者\n指　定　番　号"]
[]
[]
[null,"坂井市長殿 ",null,null,null,null,null,null,null,null,null,null,null,null,null,null,null,null,null,null,null,null,null,null,null,null,null,null,null,null,null,null,null,null,null,null,null,null,null,null,null,null,null,null,null,null,null,null,null,null,null,null,null,null,null,null,null,null,null,null,null,null,null,null,null,null,null,null,null,null,null,null,null,null,null,null,null,null,null,null,null,null,null,null,null,null,null,null,null,null,null,null,null,null,null,null,null,null,null,null,null,null,null,null,null,null,null,null,null,null,null,null,null,null,null,null,null,null,null,null,null,"宛 名 番 号"]
[]
[]
[null,null,null,null,null,null,null,null,null,null,null,null,null,null,null,null,null,null,null,null,null,null,null,null,null,null,null,null,null,null,null,null,null,null,null,null,null,null,null,null,null,null,null,"フリガナ",null,null,null,null,null,null,null,null,null,null,null,null,null,null,null,null,null,null,null,null,null,null,null,null,null,null,null,null,null,null,null,null,null,null,null,null,null,null,null,null,null,null,null,null,null,null,null,null,null,null,null,null,null,null,null,null,null,null,null,null,null,null,null,null,null,null,null,null,null,null,null,null,null,null,null,null,null,"連　絡　先\n担　当　者",null,null,null,null,null,"所 属"]
[]
[null,null,null,null,null,null,null,null,null,null,null,null,null,null,null,null,null,null,null,null,null,null,null,null,null,null,null,null,null,null,null,null,null,null,null,null,null,null,null,null,null,null,null,"氏名又は名称"]
[null,null,null,null,null,null,null,null,null,null,null,null,null,null,null,null,null,null,null,null,null,null,null,null,null,null,null,null,null,null,null,null,null,null,null,null,null,null,null,null,null,null,null,null,null,null,null,null,null,null,null,null,null,null,null,null,null,null,null,null,null,null,null,null,null,null,null,null,null,null,null,null,null,null,null,null,null,null,null,null,null,null,null,null,null,null,null,null,null,null,null,null,null,null,null,null,null,null,null,null,null,null,null,null,null,null,null,null,null,null,null,null,null,null,null,null,null,null,null,null,null,null,null,null,null,null,null,"氏 名"]
[null,null,null,"令和",null,null,null,null,null,null,null,"年",null,null,null,null,null,"月",null,null,null,null,null,"日",null,null,"提出"]
[]
[null,null,null,null,null,null,null,null,null,null,null,null,null,null,null,null,null,null,null,null,null,null,null,null,null,null,null,null,null,null,null,null,null,null,null,null,null,null,null,null,null,null,null,null,null,null,null,null,null,null,null,null,null,null,null,null,null,null,null,null,null,null,null,null,null,null,null,null,null,null,null,null,null,null,null,null,null,null,null,null,null,null,null,null,null,null,null,null,null,null,null,null,null,null,null,null,null,null,null,null,null,null,null,null,null,null,null,null,null,null,null,null,null,null,null,null,null,null,null,null,null,null,null,null,null,null,null,"電 話"]
[null,null,null,null,null,null,null,null,null,null,null,null,null,null,null,null,null,null,null,null,null,null,null,null,null,null,null,null,null,null,null,null,null,null,null,null,null,null,null,null,null,null,null,"個人番号\n又は法人番号",null,null,null,null,null,null,null,null,null,null,null,null,null,null,null,null,null,null,null,null,null,null,null,null,null,null,null,null,null,null,null,null,null,null,null,null,null,null,null,null,null,null,null,null,null,null,null,null,null,null,null,null,null,null,null,null,null,"←個人番号の記載に当たっては、\n　左端を空欄とし右詰めで記載"]
[]
[]
[]
[null,"給　与　所　得　者",null,null,null,"フリガナ",null,null,null,null,null,null,null,null,null,null,null,null,null,null,null,null,null,null,null,null,null,null,null,null,null,null,null,null,null,null,null,null,null,null,null,null,null,null,null,null,null,null,null,null,null,null,null,null,null,null,null,null,null,null,null,null,null,null,null,null,null,null,null,null,null,null,null,null,null,null,null,null,null,null,null,null,null,null,null,null,null,null,null,null,null,null,null,null,null,null,null,null,null,null,null,null,null,null,null,null,null,null,null,null,null,"異　動　の　事　由"]
[]
[null,null,null,null,null,"氏　名"]
[null,null,null,null,null,null,null,null,null,null,null,null,null,null,null,null,null,null,null,null,null,null,null,null,null,null,null,null,null,null,null,null,null,null,null,null,null,null,null,null,null,null,null,null,null,null,null,null,null,null,null,null,"（ア）",null,null,null,null,null,null,null,null,null,null,null,null,null,null,null,"（イ）",null,null,null,null,null,null,null,null,null,null,null,null,null,null,"（ウ）",null,null,null,null,null,null,null,null,null,null,null,null,null,null,null,null,null,null,null,null,null,null,null,null,null,null,null,null,null,null,null,null,null,null,null,null,null,null,null,null,null,null,null,null,null,null,null,null,null,null,null,null,null,null,null,null,"異動後の未徴収"]
[null,null,null,null,null,null,null,null,null,null,null,null,null,null,null,null,null,null,null,null,null,null,null,null,null,null,null,null,null,null,null,null,null,null,null,null,null,null,null,null,null,null,null,null,null,null,null,null,null,null,null,null,null,null,null,null,null,null,null,null,null,null,null,null,null,null,null,null,null,null,null,null,null,null,null,null,null,null,null,null,null,null,null,null,null,null,null,null,null,null,null,null,null,null,null,null,null,null,"異  　動\n年 月 日"]
[]
[null,null,null,null,null,"生年月日",null,null,null,null,null,null,null,null,null,null,null,null,null,null,null,null,null,null,null,null,null,null,null,null,"年",null,null,null,null,null,null,null,null,"月",null,null,null,null,null,null,null,null,"日",null,null,null,"特別徴収税額\n（年税額）",null,null,null,null,null,null,null,null,null,null,null,null,null,null,null,"徴収済額",null,null,null,null,null,null,null,null,null,null,null,null,null,null,"未徴収税額\n(ア)－(イ)",null,null,null,null,null,null,null,null,null,null,null,null,null,null,null,null,null,null,null,null,null,null,null,null,null,null,null,null,null,null,null,null,null,null,null,null,null,null,null,null,null,null,null,null,null,null,null,null,null,null,null,null,null,null,null,null,"税額の徴収方法"]
[]
[]
[null,null,null,null,null,"個人番号"]
[]
[]
[]
[null,null,null,null,null,"受給者番号"]
[null,null,null,null,null,null,null,null,null,null,null,null,null,null,null,null,null,null,null,null,null,null,null,null,null,null,null,null,null,null,null,null,null,null,null,null,null,null,null,null,null,null,null,null,null,null,null,null,null,null,null,null,null,null,null,null,null,null,null,null,null,null,null,null,null,null,null,null,null,null,null,null,null,null,null,"月から\n\n月まで",null,null,null,null,null,null,null,null,null,null,null,null,null,null,"月から\n\n月まで",null,null,null,null,null,null,null,null,"令和",null,null,null,null,null,null,null,null,"年",null,null,null,null,null,null,null,null,null,"1.\n2.\n3.\n4.\n5.\n6.\n7.\n",null,null,null,"退職\n転勤\n休職・長欠\n死亡\n支払少額・不定期\n合併・解散\nその他"]
[null,null,null,null,null,null,null,null,null,null,null,null,null,null,null,null,null,null,null,null,null,null,null,null,null,null,null,null,null,null,null,null,null,null,null,null,null,null,null,null,null,null,null,null,null,null,null,null,null,null,null,null,null,null,null,null,null,null,null,null,null,null,null,null,null,null,null,null,null,null,null,null,null,null,null,null,null,null,null,null,null,null,null,null,null,null,null,null,null,null,null,null,null,null,null,null,null,null,null,null,null,null,null,null,null,null,null,null,null,null,null,null,null,null,null,null,null,null,null,null,null,null,null,null,null,null,null,null,null,null,null,null,null,null,null,null,null,null,null,null,null,null,null,null,null,null,null,"１．\n２．\n３．",null,null,null,null,"特別徴収継続\n一括徴収\n普通徴収"]
[]
[null,null,null,null,null,"１月１日\n現在の住所"]
[]
[null,null,null,null,null,null,null,null,null,null,null,null,null,null,null,null,null,null,null,null,null,null,null,null,null,null,null,null,null,null,null,null,null,null,null,null,null,null,null,null,null,null,null,null,null,null,null,null,null,null,null,null,null,null,null,null,null,null,null,null,null,null,null,null,null,null,null,null,null,null,null,null,null,null,null,null,null,null,null,null,null,null,null,null,null,null,null,null,null,null,null,null,null,null,null,null,null,null,null,null,null,null,null,null,null,null,null,null,"月"]
[]
[]
[]
[null,null,null,null,null,"異動後の\n住 所"]
[null,null,null,null,null,null,null,null,null,null,null,null,null,null,null,null,null,null,null,null,null,null,null,null,null,null,null,null,null,null,null,null,null,null,null,null,null,null,null,null,null,null,null,null,null,null,null,null,null,null,null,null,null,null,null,null,null,null,null,null,null,null,null,null,null,null,null,null,null,null,null,null,null,null,null,null,null,null,null,null,null,null,null,null,null,null,null,null,null,null,null,null,null,null,null,null,null,null,null,null,null,null,null,null,null,null,null,null,"日"]
[null,null,null,null,null,null,null,null,null,null,null,null,null,null,null,null,null,null,null,null,null,null,null,null,null,null,null,null,null,null,null,null,null,null,null,null,null,null,null,null,null,null,null,null,null,null,null,null,null,null,null,null,null,null,null,null,null,null,null,null,null,null,null,null,"円",null,null,null,null,null,null,null,null,null,null,null,null,null,null,"円",null,null,null,null,null,null,null,null,null,null,null,null,null,null,"円",null,null,null,null,null,null,null,null,null,null,null,null,null,null,null,null,null,null,null,null,null,null,null,null,{"$f":"入力フォーム!F25","v":0},null,null,null,null,null,null,null,null,null,null,null,null,null,null,null,null,null,null,null,null,null,null,null,null,null,null,null,null,null,null,null,null,"(本人納付)"]
[]
[]
[]
[]
[null,"１．特別徴収継続の場合"]
[null,null,null,null,null,null,null,null,null,null,null,null,null,null,null,null,null,null,null,null,null,null,null,null,null,null,null,null,null,null,null,null,null,null,null,null,null,null,null,null,null,null,null,null,null,null,null,null,null,null,null,null,null,null,null,null,null,null,null,null,null,null,null,null,null,null,null,null,null,null,null,null,null,null,null,null,null,null,null,null,null,null,null,null,null,null,null,null,null,null,null,null,null,null,null,null,null,null,null,null,null,null,null,null,null,null,null,null,null,null,null,null,null,null,null,null,null,null,null,null,null,"新しい勤務先へは、月割額",null,null,null,null,null,null,null,null,null,null,null,null,null,null,null,null,null,null,null,null,null,null,null,null,null,null,null,null,null,null,null,null,null,null,null,null,null,"円を"]
[null,"特別徴収義務者\n新しい勤務先",null,null,null,null,"特別徴収義務者\n指　定　番　号",null,null,null,null,null,null,null,null,null,null,null,null,null,null,null,null,null,null,null,null,null,null,null,null,null,null,null,null,null,null,null,null,null,null,null,null,null,null,null,null,null,null,null,null,null,null,null,null,null,null,null,null,null,null,null,null,null,null,null,null,"法 人 番 号"]
[null,null,null,null,null,null,null,null,null,null,null,null,null,null,null,null,null,null,null,null,null,null,null,null,null,null,null,null,null,null,null,null,null,null,null,null,null,null,null,null,null,null,null,null,null,null,null,null,null,null,null,null,null,null,null,null,null,null,null,null,null,null,null,null,null,null,null,null,null,null,null,null,null,null,null,null,null,null,null,null,null,null,null,null,null,null,null,null,null,null,null,null,null,null,null,null,null,null,null,null,null,null,null,null,null,null,null,null,null,null,null,null,null,null,null,null,null,null,null,null,null,null,null,null,null,null,null,null,null,"月分（翌月10日納入期限分）から"]
[null,null,null,null,null,null,"所　在　地",null,null,null,null,null,null,null,null,null,null,null,null,null,null,null,null,"〒",null,null,null,null,null,null,null,null,null,null,null,null,null,null,null,null,null,null,null,null,null,null,null,null,null,null,null,null,null,null,null,null,null,null,null,null,null,null,null,null,null,null,null,null,null,null,null,null,null,null,null,null,null,null,"担当者連絡先",null,null,null,null,null,"所　属"]
[null,null,null,null,null,null,null,null,null,null,null,null,null,null,null,null,null,null,null,null,null,null,null,null,null,null,null,null,null,null,null,null,null,null,null,null,null,null,null,null,null,null,null,null,null,null,null,null,null,null,null,null,null,null,null,null,null,null,null,null,null,null,null,null,null,null,null,null,null,null,null,null,null,null,null,null,null,null,null,null,null,null,null,null,null,null,null,null,null,null,null,null,null,null,null,null,null,null,null,null,null,null,null,null,null,null,null,null,null,null,null,null,null,null,null,null,null,null,null,null,null,"徴収し、納入するよう連絡済みです。"]
[]
[null,null,null,null,null,null,null,null,null,null,null,null,null,null,null,null,null,null,null,null,null,null,null,null,null,null,null,null,null,null,null,null,null,null,null,null,null,null,null,null,null,null,null,null,null,null,null,null,null,null,null,null,null,null,null,null,null,null,null,null,null,null,null,null,null,null,null,null,null,null,null,null,null,null,null,null,null,null,null,null,null,null,null,null,"氏　名"]
[null,null,null,null,null,null,"フリガナ",null,null,null,null,null,null,null,null,null,null,null,null,null,null,null,null,null,null,null,null,null,null,null,null,null,null,null,null,null,null,null,null,null,null,null,null,null,null,null,null,null,null,null,null,null,null,null,null,null,null,null,null,null,null,null,null,null,null,null,null,null,null,null,null,null,null,null,null,null,null,null,null,null,null,null,null,null,null,null,null,null,null,null,null,null,null,null,null,null,null,null,null,null,null,null,null,null,null,null,null,null,null,null,null,null,null,null,null,null,null,null,null,null,"受給者番号"]
[null,null,null,null,null,null,"氏名又は名称"]
[null,null,null,null,null,null,null,null,null,null,null,null,null,null,null,null,null,null,null,null,null,null,null,null,null,null,null,null,null,null,null,null,null,null,null,null,null,null,null,null,null,null,null,null,null,null,null,null,null,null,null,null,null,null,null,null,null,null,null,null,null,null,null,null,null,null,null,null,null,null,null,null,null,null,null,null,null,null,null,null,null,null,null,null,"電　話",null,null,null,null,null,null,null,null,null,null,null,null,null,null,null,null,null,null,null,null,null,null,null,null,null,null,null,null,null,null,null,null,null,null,null,"納入書の要否\n（新規の場合のみ記載）"]
[null,null,null,null,null,null,null,null,null,null,null,null,null,null,null,null,null,null,null,null,null,null,null,null,null,null,null,null,null,null,null,null,null,null,null,null,null,null,null,null,null,null,null,null,null,null,null,null,null,null,null,null,null,null,null,null,null,null,null,null,null,null,null,null,null,null,null,null,null,null,null,null,null,null,null,null,null,null,null,null,null,null,null,null,null,null,null,null,null,null,null,null,null,null,null,null,null,null,null,null,null,null,null,null,null,null,null,null,null,null,null,null,null,null,null,null,null,null,null,null,null,null,null,null,null,null,null,null,null,null,null,null,null,null,null,null,null,null,null,null,null,null,null,null,null,null,null,null,"1.必要　2.不要"]
[]
[]
[]
[]
[null,"２．一括徴収の場合",null,null,null,null,null,null,null,null,null,null,null,null,null,null,null,null,null,null,null,null,null,null,null,null,null,null,null,null,null,null,null,null,null,null,null,null,null,null,null,null,null,null,null,null,null,null,null,null,null,null,null,null,null,null,null,null,null,null,null,null,null,null,null,null,null,null,null,null,null,null,null,null,null,null,null,null,null,null,null,null,null,null,null,null,null,null,null,null,null,null,null,null,null,null,null,null,null,null,null,null,null,null,null,null,null,null,null,null,null,null,null,null,null,null,null,null,null,null,null,null,null,null,null,null,null,null,null,null,"左記の一括徴収した税額は、"]
[null,"理　由",null,null,null,null,null,null,null,null,null,null,null,null,null,null,null,null,null,null,null,null,null,null,null,null,null,null,null,null,null,null,null,null,null,null,null,null,null,null,null,null,null,null,null,null,null,null,null,null,null,null,null,null,null,null,null,null,null,null,null,null,null,null,null,null,null,null,null,null,null,null,null,null,null,null,null,null,null,null,"徴収予定月日",null,null,null,null,null,null,null,null,null,null,null,null,null,null,null,null,null,null,null,"徴収予定額\n（上記（ウ）と同額）"]
[null,null,null,null,null,null,null,null,null,null,null,null,"１．異動が令和６年12月31日までで、一括徴収の申出があったため",null,null,null,null,null,null,null,null,null,null,null,null,null,null,null,null,null,null,null,null,null,null,null,null,null,null,null,null,null,null,null,null,null,null,null,null,null,null,null,null,null,null,null,null,null,null,null,null,null,null,null,null,null,null,null,null,null,null,null,null,null,null,null,null,null,null,null,null,null,null,null,null,null,null,null,null,null,null,null,null,null,null,null,null,null,null,null,null,null,null,null,null,null,null,null,null,null,null,null,null,null,null,null,null,null,null,null,null,null,null,null,null,null,null,null,null,null,null,null,null,null,null,"月分(翌月10日納入期限分)で"]
[]
[null,null,null,null,null,null,null,null,null,null,null,null,"２．異動が令和７年１月１日以降で、特別徴収の継続の申出がないため",null,null,null,null,null,null,null,null,null,null,null,null,null,null,null,null,null,null,null,null,null,null,null,null,null,null,null,null,null,null,null,null,null,null,null,null,null,null,null,null,null,null,null,null,null,null,null,null,null,null,null,null,null,null,null,null,null,null,null,null,null,null,null,null,null,null,null,null,null,null,null,null,null,null,"月",null,null,null,null,null,null,null,null,"日",null,null,null,null,null,null,null,null,null,null,null,null,null,null,null,null,null,null,null,null,null,null,null,null,null,"円",null,null,null,null,null,null,null,"納入します。"]
[]
[]
[null,"３．普通徴収の場合",null,null,null,null,null,null,null,null,null,null,null,null,null,null,null,null,null,null,null,null,null,null,null,null,null,null,null,null,null,null,null,null,null,null,null,null,null,null,null,null,null,null,null,null,null,null,null,null,null,null,null,null,null,null,null,null,null,null,null,null,null,null,null,null,null,null,null,null,null,null,null,null,null,null,null,null,null,null,null,null,null,null,null,null,null,null,null,null,null,null,null,null,null,null,null,null,null,null,null,null,null,null,null,null,null,null,null,null,null,"※市町村記入欄",null,null,"住民コード",null,null,null,null,null,null,null,null,null,null,null,null,null,null,null,null,null,null,null,null,null,null,null,null,null,null,null,null,null,"賦課年度"]
[null,"理　由",null,null,null,null,null,null,null,null,null,null,"１．異動が令和６年12月31日までで、一括徴収の申出がないため"]
[]
[null,null,null,null,null,null,null,null,null,null,null,null,"２．令和６年5月31日までに支払われるべき給与又は退職手当等の額が未徴収税額（ウ）以下であるため",null,null,null,null,null,null,null,null,null,null,null,null,null,null,null,null,null,null,null,null,null,null,null,null,null,null,null,null,null,null,null,null,null,null,null,null,null,null,null,null,null,null,null,null,null,null,null,null,null,null,null,null,null,null,null,null,null,null,null,null,null,null,null,null,null,null,null,null,null,null,null,null,null,null,null,null,null,null,null,null,null,null,null,null,null,null,null,null,null,null,null,null,null,null,null,null,null,null,null,null,null,"備考",null,null,null,null,null,null,null,null,null,null,null,null,null,null,null,null,null,null,null,null,null,null,null,null,null,null,null,null,null,null,null,null,null,null,"□つづり入力"]
[null,null,null,null,null,null,null,null,null,null,null,null,"３．死亡による退職であるため",null,null,null,null,null,null,null,null,null,null,null,null,null,null,null,null,null,null,null,null,null,null,null,null,null,null,null,null,null,null,null,null,null,null,null,null,null,null,null,null,null,null,null,null,null,null,null,null,null,null,null,null,null,null,null,null,null,null,null,null,null,null,null,null,null,null,null,null,null,null,null,null,null,null,null,null,null,null,null,null,null,null,null,null,null,null,null,null,null,null,null,null,null,null,null,null,null,null,null,null,null,null,null,null,null,null,null,null,null,null,null,null,null,null,null,null,null,null,null,null,null,null,null,null,null,null,null,null,null,null,null,null,null,null,null,null,"□ＴＥＬ済"]